bitfinex-derivatives/quotes_ETHF0:USTF0_20250926
["timestamp","ask_amount","ask_price","bid_price","bid_amount"]
[1758905030580,1.72928704,3981.8,3981.7,0.45489015]
[1758905031189,1.27750704,3981.8,3981.7,0.45489015]
[1758905031792,1.72928704,3981.8,3981.7,0.45489015]
[1758905032690,1.27750704,3981.8,3981.7,0.66129015]
[1758905033889,1.27750704,3981.8,3981.7,0.45489015]
[1758905034089,1.72928704,3981.8,3981.7,0.45489015]
[1758905034584,0.51050704,3981.8,3981.7,2.97354524]
[1758905034785,0.3302,3982.2,3982.1,0.7572]
[1758905034989,0.892,3982.5,3982.4,1.20891]
[1758905035190,1.40268605,3982.5,3982.4,1.20891]
[1758905035389,1.27768605,3982.5,3982.4,1.20891]
[1758905037283,1.27768605,3982.5,3982.4,2.97036509]
[1758905037284,0.51068605,3982.5,3982.4,2.97036509]
[1758905038195,0.72588605,3982.5,3982.4,2.97036509]
[1758905038393,1.05608605,3982.5,3982.4,1.20891]
[1758905038594,1.27768605,3982.5,3982.4,1.20891]
[1758905038792,1.27768605,3982.5,3982.4,0.65811]
[1758905038793,1.40648605,3982.5,3982.4,0.65811]
[1758905039296,0.51068605,3982.5,3982.4,2.97036509]
[1758905039695,0.51068605,3982.5,3982.4,1.20891]
[1758905040099,0.51068605,3982.5,3982.4,2.97036509]
[1758905040696,0.51068605,3982.5,3982.4,2.65014564]
[1758905041797,0.0251,3982.6,3982.5,1.3376]
[1758905042000,0.0251,3982.6,3982.5,1.5946]
[1758905042201,0.53605563,3982.6,3982.5,1.5946]
[1758905044102,1.30305563,3982.6,3982.5,1.4659]
[1758905044701,0.75125563,3982.6,3982.5,1.5946]
[1758905044903,0.53605563,3982.6,3982.5,1.5946]
[1758905046301,0.75125563,3982.6,3982.5,1.5946]
[1758905047105,0.53605563,3982.6,3982.5,1.5946]
[1758905047905,0.74345563,3982.6,3982.5,1.5946]
[1758905048205,1.26585563,3982.6,3982.5,1.4659]
[1758905049506,0.53605563,3982.6,3982.5,1.5942]
[1758905049908,0.0251,3982.6,3982.5,1.5942]
[1758905050604,0.7549,3982.6,3982.5,1.4659]
[1758905050800,0.7549,3982.6,3982.5,2.90713564]
[1758905051001,1.26714429,3982.6,3982.5,1.4659]
[1758905051204,1.26714429,3982.6,3982.5,1.1406]
[1758905051404,1.26714429,3982.6,3982.5,0.4517]
[1758905051604,1.26714429,3982.6,3982.5,1.2066]
[1758905052211,1.24204429,3982.6,3982.5,1.2066]
[1758905053109,0.02421491,3982.9,3982.5,1.2066]
[1758905053315,3.15189656,3984.9,3983.1,0.317]
[1758905053316,1.44123564,3984.6,3983.1,0.317]
[1758905053504,0.4155,3984.1,3984.0,1.11202]
[1758905053806,0.4155,3984.7,3984.6,0.45146]
[1758905054013,0.4155,3984.7,3984.6,0.98366]
[1758905054208,0.4179083,3984.7,3984.6,0.32019209]
[1758905054400,0.4179083,3984.7,3984.6,0.00319209]
[1758905054599,0.4179083,3984.7,3984.6,0.53539209]
[1758905054806,0.4179083,3984.7,3984.6,0.75809209]
[1758905055106,0.2098083,3984.7,3984.6,2.19932773]
[1758905056219,0.0024083,3984.7,3984.6,2.19932773]
[1758905057719,0.0024083,3984.7,3984.6,2.45632773]
[1758905059018,0.2294083,3984.7,3984.6,2.45632773]
[1758905059617,0.2294083,3984.7,3984.6,2.19932773]
[1758905059816,0.0024083,3984.7,3984.6,2.45632773]
[1758905061822,0.0024083,3984.7,3984.6,1.01509209]
[1758905062830,0.0024083,3984.7,3984.6,1.46655209]
[1758905065529,8.3e-06,3984.8,3984.7,1.21835]
[1758905065833,0.4531,3985.9,3985.8,1.00012]
[1758905066127,0.4531,3985.9,3985.8,0.5488]
[1758905066328,1.14841,3985.9,3985.8,1.00012]
[1758905066533,0.70000438,3985.9,3985.8,1.00012]
[1758905067137,1.15131438,3985.9,3985.8,0.5488]
[1758905067343,1.15131438,3985.9,3985.8,1.00012]
[1758905067635,0.70000438,3985.9,3985.8,1.00012]
[1758905067938,1.15131438,3985.9,3985.8,1.00012]
[1758905068940,1.15131438,3985.9,3985.8,0.3336]
[1758905069129,1.15131438,3985.9,3985.8,0.78492]
[1758905069530,1.15131438,3985.9,3985.8,0.3336]
[1758905069935,1.15131438,3985.9,3985.8,0.5488]
[1758905070134,0.70000438,3985.9,3985.8,1.00012]
[1758905070441,1.15131438,3985.9,3985.8,1.00012]
[1758905070642,0.45600438,3985.9,3985.8,1.21822]
[1758905070839,0.90731438,3985.9,3985.8,1.21822]
[1758905071040,0.45600438,3985.9,3985.8,1.21822]
[1758905071240,0.90731438,3985.9,3985.8,1.21822]
[1758905072942,0.45600438,3985.9,3985.8,1.21822]
[1758905073143,0.45135,3985.6,3985.5,0.58196]
[1758905073334,0.4531,3985.1,3985.0,1.01531]
[1758905073644,0.4531,3985.1,3985.0,1.27231]
[1758905073844,0.4531,3985.1,3985.0,1.60591]
[1758905074240,0.6971,3985.1,3985.0,0.45141]
[1758905074535,0.92151,3985.0,3984.7,0.3336]
[1758905074739,0.6971,3984.8,3984.7,0.3336]
[1758905074940,0.6971,3984.8,3984.7,0.78505]
[1758905075835,0.4531,3984.8,3984.7,1.21835]
[1758905076238,0.227,3984.8,3984.7,1.21835]
[1758905076543,0.4531,3985.2,3985.1,1.2183]
[1758905076743,0.96214193,3985.2,3985.1,1.2183]
[1758905077042,0.6971,3984.7,3984.6,0.45465209]
[1758905077243,2.64737757,3984.7,3984.6,0.00319209]
[1758905079248,2.64737757,3984.7,3984.6,0.55199209]
[1758905079739,0.73604193,3984.7,3984.6,0.77009209]
[1758905079945,0.50904193,3984.7,3984.6,0.77009209]
[1758905080139,0.227,3984.8,3984.7,0.88475]
[1758905080341,0.96291967,3984.8,3984.7,1.21835]
[1758905080536,0.96291967,3984.8,3984.7,0.7669]
[1758905080838,1.20691967,3984.8,3984.7,0.7669]
[1758905081146,1.20691967,3984.8,3984.7,0.5488]
[1758905081549,1.65835967,3984.8,3984.7,0.3336]
[1758905082043,1.20691967,3984.8,3984.7,0.3336]
[1758905082249,1.14855,3984.7,3984.6,0.33679209]
[1758905082444,1.65836967,3984.7,3984.6,0.33679209]
[1758905082746,1.20691967,3984.7,3984.6,1.00345209]
[1758905083340,0.96291967,3984.7,3984.6,1.00345209]
[1758905083537,0.96291967,3984.7,3984.6,1.22155209]
[1758905084548,3.09960531,3984.7,3984.6,1.22155209]
[1758905085147,2.85560531,3984.7,3984.6,1.22155209]
[1758905085543,2.40415531,3984.7,3984.6,1.22155209]
[1758905086151,2.85560531,3984.7,3984.6,1.22155209]
[1758905086448,0.244,3984.2,3983.4,1.12897]
[1758905086646,0.244,3984.2,3983.0,0.1306]
[1758905086647,1.89433564,3983.8,3983.7,1.21846]
[1758905086841,2.40415531,3983.8,3983.7,1.21846]
[1758905087352,3.09970531,3983.8,3983.7,0.5488]
[1758905087545,3.09970531,3983.8,3983.7,0.33618261]
[1758905088043,3.09970531,3983.8,3983.7,0.78774261]
[1758905088238,3.09970531,3983.8,3983.7,1.00294261]
[1758905088444,2.64815531,3983.8,3983.7,1.00294261]
[1758905088946,2.64815531,3983.8,3983.7,0.55138261]
[1758905089249,2.64815531,3983.8,3983.7,0.78774261]
[1758905089443,2.64815531,3983.8,3983.7,0.45414261]
[1758905090246,2.64815531,3983.8,3983.7,0.77704261]
[1758905092044,3.09970531,3983.8,3983.7,0.00258261]
[1758905092349,2.64815531,3983.8,3983.7,0.45414261]
[1758905092544,2.64815531,3983.8,3983.7,0.77704261]
[1758905093048,0.96291967,3983.8,3983.7,1.22014261]
[1758905093248,0.73681967,3983.8,3983.7,1.22014261]
[1758905094147,9.90503589,4004.6,3983.7,1.22014261]
[1758905094148,0.2269,3984.4,3984.3,1.21749]
[1758905094363,0.99420638,3984.4,3984.3,1.21749]
[1758905094846,1.44568638,3984.4,3984.3,1.21749]
[1758905095046,1.65768638,3984.4,3984.3,1.21749]
[1758905095252,0.2269,3983.8,3983.7,0.45414261]
[1758905095447,1.88013564,3983.8,3983.7,0.89724261]
[1758905095648,0.4839,3984.1,3984.0,1.02933]
[1758905095848,0.4839,3984.1,3984.0,1.35223]
[1758905096046,0.76724132,3984.1,3984.0,1.35223]
[1758905096452,0.99414132,3984.1,3984.0,1.35223]
[1758905096650,1.20614132,3984.1,3984.0,1.35223]
[1758905096955,0.76724132,3984.1,3984.0,1.35223]
[1758905097649,0.99414132,3984.1,3984.0,1.35223]
[1758905098556,2.64737696,3984.1,3984.0,1.35223]
[1758905098853,1.13475,3983.8,3983.7,0.00258261]
[1758905099060,3.34322696,3983.8,3983.7,0.00258261]
[1758905099247,3.34322696,3983.8,3983.7,0.32548261]
[1758905099647,3.34322696,3983.8,3983.7,0.99984261]
[1758905099955,3.34322696,3983.8,3983.7,0.54828261]
[1758905100349,3.34322696,3983.8,3983.7,0.00258261]
[1758905100653,3.66210679,3983.8,3983.7,0.00258261]
[1758905100861,3.66210679,3983.8,3983.7,0.54828261]
[1758905101050,3.66210679,3983.8,3983.7,0.32548261]
[1758905101546,3.66210679,3983.8,3983.7,0.00258261]
[1758905102260,1.65769132,3983.8,3983.7,0.76858261]
[1758905102555,1.90199132,3983.8,3983.7,0.54828261]
[1758905103348,3.66210679,3983.8,3983.7,0.00258261]
[1758905103554,0.99414132,3983.8,3983.7,1.22014261]
[1758905103756,1.44569132,3983.8,3983.7,0.76858261]
[1758905104050,1.44569132,3983.8,3983.7,1.22014261]
[1758905104462,0.99414132,3983.8,3983.7,1.22014261]
[1758905104661,1.44569132,3983.8,3983.7,1.22014261]
[1758905104962,0.51024132,3983.8,3983.7,2.98025808]
[1758905105163,0.2269,3984.2,3984.1,0.99472]
[1758905105370,0.73803018,3984.2,3984.1,1.21752]
[1758905105655,1.64613018,3984.2,3984.1,0.3229]
[1758905105856,1.90313018,3984.2,3984.1,0.99142]
[1758905106051,1.65853018,3984.2,3984.1,1.21462]
[1758905106253,1.20703018,3984.2,3984.1,1.21462]
[1758905106761,0.99503018,3984.2,3984.1,1.21462]
[1758905106957,1.65413018,3984.2,3984.1,0.7631]
[1758905107157,0.4151,3984.1,3983.8,0.321]
[1758905107359,1.11124,3983.9,3983.8,0.321]
[1758905107553,1.11125,3983.8,3983.7,0.77514261]
[1758905107749,1.62238018,3983.8,3983.7,0.00258261]
[1758905108663,0.4151,3982.9,3982.8,1.21286]
[1758905108861,0.2075,3982.9,3982.8,1.21286]
[1758905109062,0.51113018,3982.9,3982.8,1.21286]
[1758905109264,0.2075,3983.1,3983.0,1.34124]
[1758905109450,0.51401969,3983.1,3983.0,1.34432514]
[1758905110264,0.00269398,3983.1,3983.0,8.10444061]
[1758905110470,0.00269398,3983.1,3983.0,1.34432514]
[1758905111158,0.2325,3984.3,3984.2,1.2127]
[1758905111355,0.74381112,3984.3,3984.2,1.2127]
[1758905111561,1.17030112,3984.3,3984.2,1.2127]
[1758905112162,0.81248706,3984.3,3984.2,1.2127]
[1758905112470,0.60498706,3984.3,3984.2,1.2127]
[1758905112767,0.60499595,3984.3,3984.2,1.2127]
[1758905116860,1.02009595,3984.3,3984.2,1.2127]
[1758905117164,0.60499595,3984.3,3984.2,1.2127]
[1758905118265,0.60499595,3984.3,3984.2,1.4697]
[1758905118461,0.09368483,3984.3,3984.2,1.4697]
[1758905120384,0.97847483,3984.3,3984.2,0.7612]
[1758905120666,1.73387057,3984.3,3984.2,1.2127]
[1758905120868,1.48947057,3984.3,3984.2,0.7612]
[1758905121067,0.45152,3984.1,3984.0,0.1284]
[1758905121366,1.73136646,3984.1,3984.0,0.4446]
[1758905121562,0.60214646,3984.1,3984.0,1.32633]
[1758905122266,0.09115072,3984.1,3984.0,1.32633]
[1758905122465,0.09115072,3984.1,3984.0,1.58333]
[1758905122862,0.00248943,3984.3,3984.2,1.1979]
[1758905123064,0.09363818,3984.3,3984.2,1.1979]
[1758905123263,0.60462771,3984.3,3984.2,1.1979]
[1758905123569,0.09363818,3984.3,3984.2,1.1979]
[1758905123972,0.09363818,3984.3,3984.2,1.4549]
[1758905125362,0.09363818,3984.3,3984.2,1.1979]
[1758905125562,0.09363818,3984.3,3984.2,1.4549]
[1758905125763,0.09363818,3984.3,3984.2,1.4539]
[1758905126471,0.09114875,3984.3,3984.2,1.4539]
[1758905126765,0.025,3984.7,3984.6,1.19786]
[1758905126964,0.025,3984.7,3984.6,1.45386]
[1758905127268,0.4333,3985.7,3985.6,0.98704]
[1758905127469,0.94377812,3985.7,3985.6,0.98704]
[1758905127667,0.9463029,3985.7,3985.6,1.19774]
[1758905127970,0.7246029,3985.7,3985.6,1.19774]
[1758905129266,0.21412478,3985.7,3985.6,1.19774]
[1758905129862,0.43582478,3985.7,3985.6,0.7464]
[1758905130069,0.43582478,3985.7,3985.6,1.19774]
[1758905130676,0.00252478,3985.7,3985.6,1.19774]
[1758905131664,0.21412478,3985.7,3985.6,1.19774]
[1758905132272,0.00252478,3985.7,3985.6,1.19774]
[1758905133166,0.21412478,3985.7,3985.6,1.19774]
[1758905133372,0.9453094,3985.7,3985.6,1.19774]
[1758905133568,1.2812094,3985.7,3985.0,0.1347]
[1758905133772,0.4333,3985.3,3985.2,1.19779]
[1758905134180,0.94278462,3985.3,3985.2,1.19779]
[1758905134483,1.39416462,3985.3,3985.2,0.7464]
[1758905134778,0.45142,3984.9,3984.8,0.3162]
[1758905134972,1.22066,3984.6,3984.5,0.5357]
[1758905135174,0.4333,3984.4,3984.3,0.67099]
[1758905135379,0.4333,3984.4,3984.3,0.98719]
[1758905135565,0.45156,3983.8,3983.7,0.2195]
[1758905135774,1.22076,3983.8,3983.7,0.3162]
[1758905135980,1.39477552,3983.8,3983.5,0.90248]
[1758905136176,0.4333,3983.6,3983.5,0.80578]
[1758905136381,0.4333,3983.6,3983.5,0.3542]
[1758905136774,0.4333,3983.6,3983.5,0.6704]
[1758905136974,0.4333,3983.6,3983.1,0.45163]
[1758905137175,0.88491,3983.3,3983.2,0.5357]
[1758905137482,0.88491,3983.3,3983.0,0.00308514]
[1758905137483,0.7692,3983.1,3983.0,0.00308514]
[1758905137680,0.5099014,3983.1,3983.0,0.88418514]
[1758905137882,0.2116,3984.0,3983.9,0.7464]
[1758905138080,0.72140062,3984.0,3983.9,0.7464]
[1758905138581,0.81174528,3984.0,3983.9,0.7464]
[1758905138773,0.60014528,3984.0,3983.9,0.7464]
[1758905139082,0.09034466,3984.0,3983.9,0.7464]
[1758905139878,0.30194466,3984.0,3983.9,0.7464]
[1758905140082,0.09034466,3984.0,3983.9,0.7464]
[1758905140672,0.60041216,3984.0,3983.9,0.7464]
[1758905141577,0.81201216,3984.0,3983.9,0.7464]
[1758905141879,1.03371216,3984.0,3983.9,0.7464]
[1758905142077,1.05194216,3984.0,3983.6,0.76777]
[1758905142378,0.9616075,3983.9,3983.7,0.3162]
[1758905142683,0.45154,3983.9,3983.8,0.7464]
[1758905142980,1.39492979,3983.9,3983.8,0.7464]
[1758905144678,0.4333,3983.6,3983.5,0.6704]
[1758905144984,0.4333,3983.6,3983.5,0.8811]
[1758905145281,0.7692,3983.6,3983.5,0.3162]
[1758905145471,0.2116,3983.2,3983.1,0.5357]
[1758905145675,0.2116,3983.2,3983.1,0.7464]
[1758905145883,1.22083,3983.1,3983.0,0.00308514]
[1758905146075,1.73081664,3983.1,3983.0,0.00308514]
[1758905146377,0.7692,3983.1,3983.0,0.53878514]
[1758905146580,0.4333,3983.1,3983.0,0.67348514]
[1758905146876,0.1155,3984.0,3983.0,0.88418514]
[1758905147072,0.45156,3983.7,3983.3,0.3162]
[1758905147273,0.45156,3983.7,3983.2,0.45161]
[1758905147274,0.72137558,3983.6,3983.5,0.3542]
[1758905147473,0.72137558,3983.6,3983.5,0.6704]
[1758905147681,0.94307558,3983.6,3983.5,0.6704]
[1758905147879,1.39464558,3983.6,3983.5,0.6704]
[1758905148285,0.4562,3983.2,3983.1,0.55]
[1758905148581,0.2277,3983.2,3983.1,1.21663]
[1758905148775,0.45158,3983.6,3983.5,0.212]
[1758905149077,1.24536,3983.7,3983.6,0.338]
[1758905149281,0.78917,3983.6,3983.2,0.338]
[1758905149580,0.2277,3983.3,3983.2,1.21662]
[1758905150785,1.24543,3983.1,3983.0,0.00308514]
[1758905150982,1.75489014,3983.1,3983.0,0.00308514]
[1758905151174,1.41729014,3983.1,3983.0,0.89468514]
[1758905151483,0.5936,3983.5,3983.0,0.89468514]
[1758905151484,0.45161,3983.3,3983.0,0.89468514]
[1758905151683,0.256,3983.7,3983.0,0.89468514]
[1758905151684,0.45163,3983.1,3983.0,0.12968514]
[1758905151880,1.75477007,3983.1,3983.0,0.00308514]
[1758905152485,1.24543,3983.1,3983.0,0.00308514]
[1758905152788,1.7546202,3983.1,3983.0,0.00308514]
[1758905153688,6.7546202,3983.1,3983.0,0.00308514]
[1758905153982,1.3029902,3983.1,3983.0,0.55308514]
[1758905154173,0.4562,3983.1,3983.0,1.34632514]
[1758905154378,0.67931,3983.3,3983.2,0.55]
[1758905154880,1.18822089,3983.3,3983.2,0.55]
[1758905155078,0.2277,3983.3,3983.2,1.21662]
[1758905155280,0.67928,3983.6,3983.5,0.4646]
[1758905155481,0.45158,3983.6,3983.5,0.8916]
[1758905156286,0.67928,3983.6,3983.5,0.8916]
[1758905157483,0.67928,3983.6,3983.0,0.12968514]
[1758905157484,0.67933,3983.1,3983.0,0.55308514]
[1758905157690,1.24543,3983.1,3983.0,0.34108514]
[1758905157877,0.2277,3983.1,3983.0,1.34632514]
[1758905158184,0.67931,3983.3,3983.2,0.765]
[1758905158492,0.45161,3983.3,3983.2,0.765]
[1758905158883,0.67931,3983.3,3983.2,0.765]
[1758905159084,3.88711,3983.3,3983.2,0.765]
[1758905159692,4.45321,3983.3,3983.2,0.55]
[1758905159888,4.45321,3983.3,3983.0,0.12968514]
[1758905159889,1.24543,3983.1,3983.0,0.34108514]
[1758905160087,0.4562,3983.1,3983.0,1.34632514]
[1758905160392,0.4562,3983.1,3983.0,0.89468514]
[1758905160589,0.3376,3983.5,3983.2,0.45161]
[1758905160892,0.67929,3983.4,3983.3,1.00161]
[1758905161081,3.2329,3983.7,3983.3,1.00161]
[1758905161082,3.2329,3983.7,3983.6,0.45157]
[1758905161282,3.2329,3983.7,3983.6,1.21657]
[1758905161483,3.2078,3984.2,3984.1,0.427]
[1758905161692,3.71757182,3984.2,3984.1,1.21651]
[1758905162187,3.2078,3984.6,3984.5,1.34307]
[1758905162387,0.50983358,3984.6,3984.5,1.34307]
[1758905162590,0.50980258,3984.6,3984.5,1.34307]
[1758905162787,0.50980258,3984.6,3984.5,0.8916]
[1758905164296,0.73750258,3984.6,3984.5,0.8916]
[1758905164891,1.30360258,3984.6,3984.5,0.55]
[1758905165086,0.96600258,3984.6,3984.5,0.55]
[1758905165996,0.96600258,3984.6,3984.5,0.6786]
[1758905166199,0.50980258,3984.6,3984.5,0.8863]
[1758905167295,3.2328,3985.1,3985.0,0.5565]
[1758905167493,3.74293472,3985.1,3985.0,1.33871]
[1758905168294,0.53513472,3985.1,3985.0,6.33871]
[1758905168596,0.025,3985.1,3985.0,6.33871]
[1758905168803,0.45385478,3985.7,3985.0,6.33871]
[1758905168804,0.00252478,3985.7,3985.6,1.21004]
[1758905170796,0.00252478,3985.7,3985.6,1.46604]
[1758905171001,0.00252478,3985.7,3985.6,1.21004]
[1758905171203,0.00252478,3985.7,3985.6,1.0147]
[1758905172800,0.00252478,3985.7,3985.6,4.2225]
[1758905173202,0.00252478,3985.7,3985.6,3.9665]
[1758905173407,0.00252478,3985.7,3985.6,4.2225]
[1758905176106,0.00252478,3985.7,3985.6,3.9665]
[1758905176309,0.00252478,3985.7,3985.6,1.0147]
[1758905178309,0.45386478,3985.7,3985.6,1.46605]
[1758905178502,0.45386478,3985.7,3985.6,1.0147]
[1758905178703,0.00252478,3985.7,3985.6,1.46605]
[1758905179007,0.00252478,3985.7,3985.6,4.67385]
[1758905179707,0.89106478,3985.7,3985.6,0.7587]
[1758905180207,0.31842478,3985.7,3985.1,0.3351]
[1758905180413,0.2226,3985.2,3985.1,1.472]
[1758905180818,1.20449,3985.2,3985.1,0.5463]
[1758905181311,0.88859,3985.2,3985.1,0.5463]
[1758905182013,1.20449,3985.2,3985.1,0.5463]
[1758905182610,0.7531,3985.2,3985.1,0.9977]
[1758905182811,0.7531,3985.2,3984.8,0.3351]
[1758905182812,0.3159,3985.2,3984.8,0.3351]
[1758905183017,0.2226,3985.2,3985.1,1.216]
[1758905183215,3.2078,3985.5,3985.3,0.45137]
[1758905183513,3.2078,3985.5,3985.4,1.21597]
[1758905184112,0.00252478,3985.7,3985.6,0.88085]
[1758905184315,0.00252478,3985.7,3985.6,1.21595]
[1758905184715,0.43972478,3985.7,3985.6,1.47195]
[1758905184910,1.20696478,3985.7,3985.6,0.3351]
[1758905185214,0.4372,3985.4,3985.3,0.99768]
[1758905185520,0.4372,3985.4,3985.3,1.21598]
[1758905185910,0.89107478,3985.7,3985.6,0.66255]
[1758905186219,0.00252478,3985.7,3985.6,1.21595]
[1758905187317,0.67646478,3985.7,3985.6,0.7646]
[1758905187614,0.67646478,3985.7,3985.6,1.21595]
[1758905187615,0.43972478,3985.7,3985.6,1.21595]
[1758905187929,0.00252478,3985.7,3985.6,1.21595]
[1758905188118,0.45386478,3985.7,3985.6,1.21595]
[1758905188412,0.45386478,3985.7,3985.3,0.99768]
[1758905188413,0.4372,3985.4,3985.3,0.99768]
[1758905188718,0.2226,3985.4,3985.3,1.21598]
[1758905189113,0.2226,3985.6,3985.5,1.01185]
[1758905189420,1.18344463,3985.6,3985.5,0.8956]
[1758905189716,1.39804463,3985.6,3985.5,0.8956]
[1758905189913,1.71394463,3985.6,3985.5,0.8956]
[1758905190118,1.71394463,3985.6,3985.5,0.3351]
[1758905190309,1.71394463,3985.6,3985.0,1.12871]
[1758905190310,0.4372,3985.1,3985.0,1.12871]
[1758905190710,3.2078,3985.4,3985.3,0.88088]
[1758905190920,3.71738224,3985.4,3985.3,1.21598]
[1758905191116,0.00252478,3985.7,3985.6,1.21595]
[1758905191421,0.51206086,3985.7,3985.6,1.21595]
[1758905192017,0.00252478,3985.7,3985.6,1.21595]
[1758905192222,3.2078,3986.3,3986.2,0.88078]
[1758905192518,3.2078,3986.3,3986.2,1.21588]
[1758905192519,0.50975192,3986.3,3986.2,1.21588]
[1758905193316,0.51189625,3986.3,3986.2,1.21812164]
[1758905193713,0.73449625,3986.3,3986.2,1.47412164]
[1758905194122,0.51189625,3986.3,3986.2,1.47412164]
[1758905194423,1.18576625,3986.3,3986.2,1.02284164]
[1758905194616,1.40036625,3986.3,3986.2,0.76684164]
[1758905194811,1.71626625,3986.3,3986.2,0.00224164]
[1758905195317,0.94909625,3986.3,3986.2,0.54854164]
[1758905195515,1.71626625,3986.3,3986.2,0.00224164]
[1758905196620,0.45129,3986.2,3985.7,0.45134]
[1758905196824,0.45129,3986.2,3985.5,3.3388]
[1758905196825,0.67389,3986.2,3986.1,0.7646]
[1758905197121,0.51029892,3986.2,3986.1,0.7646]
[1758905197512,0.51029892,3986.2,3986.1,0.76693903]
[1758905198717,0.51029892,3986.2,3986.1,1.21822903]
[1758905202125,0.96157892,3986.2,3986.1,1.21822903]
[1758905202313,0.51029892,3986.2,3986.1,1.21822903]
[1758905202515,0.00214433,3986.3,3986.2,1.21588]
[1758905202927,0.45341433,3986.3,3986.2,1.21588]
[1758905203121,0.45341433,3986.3,3986.2,0.7646]
[1758905203326,0.00214433,3986.3,3986.2,1.21588]
[1758905204628,0.45341433,3986.3,3986.2,1.21588]
[1758905204929,0.45341433,3986.3,3986.2,0.7646]
[1758905205230,0.89061433,3986.3,3986.2,1.0206]
[1758905205529,1.71660532,3986.3,3986.2,1.0206]
[1758905205724,1.71660532,3986.3,3986.2,0.7646]
[1758905206522,1.71660532,3986.3,3986.2,1.21588]
[1758905206724,1.71660532,3986.3,3986.2,0.7646]
[1758905207026,1.26533532,3986.3,3986.2,1.21588]
[1758905207227,0.94943532,3986.3,3986.2,1.21588]
[1758905207824,0.94943532,3986.3,3986.2,0.7646]
[1758905208026,0.94943532,3986.3,3986.2,1.21588]
[1758905208731,1.40070532,3986.3,3986.2,1.21588]
[1758905209034,1.40070532,3986.3,3986.1,0.25833903]
[1758905209035,1.19298,3986.2,3986.1,0.33933903]
[1758905209223,1.25179099,3986.2,3986.1,0.56723903]
[1758905209422,0.93309099,3986.2,3986.1,1.01852903]
[1758905209631,1.70307099,3986.2,3986.1,0.33933903]
[1758905210128,6.70307099,3986.2,3986.1,0.00233903]
[1758905211423,0.93309099,3986.2,3986.1,1.22792903]
[1758905211620,0.51009099,3986.2,3986.1,1.22792903]
[1758905212332,0.00214433,3986.3,3986.2,1.22558]
[1758905213027,0.00214433,3986.3,3986.2,1.48158]
[1758905214721,3.2078,3987.3,3986.5,0.80334]
[1758905214936,3.65895,3987.3,3987.2,0.7743]
[1758905215130,4.16916084,3987.3,3987.2,0.7743]
[1758905215426,4.16916084,3987.3,3987.0,0.337]
[1758905215427,3.71801084,3987.3,3987.0,0.337]
[1758905215638,0.8742,3986.9,3986.8,0.337]
[1758905215822,0.66231,3986.8,3986.7,0.256]
[1758905216023,0.93321084,3986.8,3986.7,1.01612]
[1758905216434,1.38442084,3986.8,3986.7,1.01612]
[1758905216730,1.38442084,3986.8,3986.7,0.5649]
[1758905216936,1.19296,3986.4,3986.3,3.7727]
[1758905217142,1.70317084,3986.4,3986.3,0.337]
[1758905217627,1.70317084,3986.4,3986.1,0.23023903]
[1758905217628,1.19298,3986.2,3986.1,0.23023903]
[1758905217831,1.70319084,3986.2,3986.1,0.00233903]
[1758905218030,0.93321084,3986.2,3986.1,0.56723903]
[1758905218238,0.93321084,3986.2,3986.1,1.22792903]
[1758905218432,0.72131084,3986.2,3986.1,1.22792903]
[1758905218633,0.51021084,3986.2,3986.1,1.22792903]
[1758905219127,0.51021084,3986.2,3986.1,1.48392903]
[1758905219327,0.025,3986.3,3986.2,0.78828]
[1758905219532,0.025,3986.3,3986.2,1.22558]
[1758905219733,0.025,3986.3,3986.2,6.22558]
[1758905221828,0.00208648,3986.9,3986.8,1.22551]
[1758905222032,0.00208648,3986.9,3986.8,1.48151]
[1758905222236,0.51273282,3986.9,3986.8,1.48151]
[1758905222538,0.96393282,3986.9,3986.8,1.48151]
[1758905222942,0.51273282,3986.9,3986.8,1.48151]
[1758905223339,0.96393282,3986.9,3986.8,1.48151]
[1758905223939,1.17503282,3986.9,3986.8,1.48151]
[1758905224142,1.70563282,3986.9,3986.8,0.337]
[1758905224344,1.70563282,3986.9,3986.8,0.593]
[1758905224845,1.70563282,3986.9,3986.8,1.27211]
[1758905225342,1.38693282,3986.9,3986.8,1.27211]
[1758905225741,1.38693282,3986.9,3986.8,0.8209]
[1758905226043,1.71693282,3986.9,3986.8,0.256]
[1758905226241,1.71693282,3986.9,3986.8,1.25061]
[1758905226542,0.93573282,3986.9,3986.8,1.25061]
[1758905226745,0.93573282,3986.9,3986.8,1.46771]
[1758905226938,0.93573282,3986.9,3986.8,1.21171]
[1758905227134,0.51273282,3986.9,3986.8,1.21171]
[1758905227446,0.00208648,3986.9,3986.8,1.21171]
[1758905228343,0.025,3987.6,3987.5,1.34453]
[1758905228530,0.50991725,3987.6,3987.5,1.1494]
[1758905228736,0.92501725,3987.6,3987.5,1.1494]
[1758905228930,1.25501725,3987.6,3987.5,1.1494]
[1758905229139,0.92501725,3987.6,3987.5,1.1494]
[1758905229442,0.92825977,3987.6,3987.5,1.1494]
[1758905233341,0.51315977,3987.6,3987.5,1.1494]
[1758905233839,0.72035977,3987.6,3987.5,1.1494]
[1758905234143,0.92825977,3987.6,3987.5,1.1494]
[1758905234740,0.72035977,3987.6,3987.5,1.1494]
[1758905234942,0.51315977,3987.6,3987.5,1.1494]
[1758905235341,0.00324252,3987.6,3987.5,4.3572]
[1758905235542,0.21044252,3987.6,3987.5,4.3572]
[1758905235740,0.00324252,3987.6,3987.5,4.3572]
[1758905236846,0.00324252,3987.6,3987.5,4.80833]
[1758905239436,0.022,3987.9,3987.8,0.4511]
[1758905239638,0.025,3988.3,3988.2,1.19065]
[1758905239936,0.67667,3989.0,3988.9,0.2206]
[1758905240140,1.39943841,3989.0,3988.9,0.5314]
[1758905240341,0.94846841,3989.0,3988.9,0.9956]
[1758905240546,1.18787224,3989.0,3988.9,0.99793992]
[1758905241136,1.72097224,3989.0,3988.9,0.00233992]
[1758905241344,6.78527224,3989.0,3988.9,0.00233992]
[1758905242346,9.99307224,3989.0,3988.9,0.00233992]
[1758905243242,9.99307224,3989.0,3987.8,0.5314]
[1758905243243,0.7588,3987.9,3987.8,0.5314]
[1758905243445,1.20989,3987.9,3987.8,0.5314]
[1758905243644,0.4397,3987.9,3987.8,1.1907]